[Event "Late-Titled-Tuesday-Blitz-March-26-2024"]
[Site "Chess.com"]
[Date "2024.03.26"]
[Round "1"]
[White "czasnaszachy"]
[Black "MarcoRiehle"]
[Result "0-1"]
[WhiteElo "2423"]
[BlackElo "2787"]
[TimeControl "180+1"]
[EndTime "14:09:49 PDT"]
[Termination "MarcoRiehle won on time"]

1. e4 {[%clk 0:03:00]} 1... e5 {[%clk 0:02:58.8]} 2. Nf3 {[%clk 0:02:59.5]} 2...
Nf6 {[%clk 0:02:57.8]} 3. Nxe5 {[%clk 0:02:58.5]} 3... Nxe4 {[%clk 0:02:57.1]}
4. Qe2 {[%clk 0:02:58.3]} 4... Qe7 {[%clk 0:02:56.4]} 5. Qxe4 {[%clk 0:02:58.1]}
5... d6 {[%clk 0:02:56.4]} 6. d4 {[%clk 0:02:57.9]} 6... dxe5 {[%clk 0:02:56.5]}
7. dxe5 {[%clk 0:02:58.8]} 7... Nc6 {[%clk 0:02:55.4]} 8. Nc3 {[%clk 0:02:59.3]}
8... Qxe5 {[%clk 0:02:54.6]} 9. Qxe5+ {[%clk 0:02:57.3]} 9... Nxe5 {[%clk
0:02:55.5]} 10. Bf4 {[%clk 0:02:45]} 10... f6 {[%clk 0:02:51.7]} 11. O-O-O
{[%clk 0:02:42.1]} 11... Bd7 {[%clk 0:02:51.1]} 12. Bb5 {[%clk 0:02:19]} 12...
O-O-O {[%clk 0:02:49.3]} 13. Bxe5 {[%clk 0:02:05.4]} 13... fxe5 {[%clk 0:02:48]}
14. Bxd7+ {[%clk 0:02:04]} 14... Rxd7 {[%clk 0:02:48.9]} 15. Rxd7 {[%clk
0:02:03.6]} 15... Kxd7 {[%clk 0:02:49.8]} 16. Rd1+ {[%clk 0:02:00.8]} 16... Bd6
{[%clk 0:02:49.8]} 17. Ne4 {[%clk 0:02:01.3]} 17... Kc6 {[%clk 0:02:48.8]} 18.
c4 {[%clk 0:01:51.8]} 18... Rf8 {[%clk 0:02:44.4]} 19. f3 {[%clk 0:01:49]} 19...
h6 {[%clk 0:02:43.4]} 20. Kc2 {[%clk 0:01:46.8]} 20... a5 {[%clk 0:02:39.9]} 21.
a3 {[%clk 0:01:40.4]} 21... b6 {[%clk 0:02:37.7]} 22. Kc3 {[%clk 0:01:39]} 22...
g5 {[%clk 0:02:26.4]} 23. h3 {[%clk 0:01:18.3]} 23... h5 {[%clk 0:02:08.8]} 24.
b4 {[%clk 0:00:26.6]} 24... axb4+ {[%clk 0:02:05.8]} 25. axb4 {[%clk 0:00:27.5]}
25... g4 {[%clk 0:02:02.6]} 26. b5+ {[%clk 0:00:25.6]} 26... Kd7 {[%clk
0:02:02.3]} 27. hxg4 {[%clk 0:00:25]} 27... hxg4 {[%clk 0:02:01.8]} 28. fxg4
{[%clk 0:00:24.7]} 28... Rf4 {[%clk 0:02:01]} 29. Kd3 {[%clk 0:00:21.7]} 29...
Ke6 {[%clk 0:02:01.2]} 30. Rh1 {[%clk 0:00:06.6]} 30... Rxg4 {[%clk 0:02:01.2]}
31. Rh6+ {[%clk 0:00:06.2]} 31... Ke7 {[%clk 0:02:01]} 32. Rh7+ {[%clk
0:00:04.8]} 32... Ke6 {[%clk 0:01:54.3]} 33. Rh6+ {[%clk 0:00:04.8]} 33... Ke7
{[%clk 0:01:54.7]} 34. Rh7+ {[%clk 0:00:05.2]} 34... Kd8 {[%clk 0:01:54.1]} 35.
g3 {[%clk 0:00:03.9]} 35... Rg6 {[%clk 0:01:50.3]} 36. Ke3 {[%clk 0:00:03.6]}
36... Be7 {[%clk 0:01:48.5]} 37. Kf3 {[%clk 0:00:04.5]} 37... Kd7 {[%clk
0:01:48.7]} 38. g4 {[%clk 0:00:04.7]} 38... c6 {[%clk 0:01:48.4]} 39. Rh5 {[%clk
0:00:05]} 39... cxb5 {[%clk 0:01:46.2]} 40. cxb5 {[%clk 0:00:05.9]} 40... Ke6
{[%clk 0:01:46.1]} 41. g5 {[%clk 0:00:03.4]} 41... Kf5 {[%clk 0:01:38.5]} 42.
Ng3+ {[%clk 0:00:02.3]} 42... Ke6 {[%clk 0:01:38]} 43. Ne4 {[%clk 0:00:03.2]}
43... Bf8 {[%clk 0:01:34.1]} 44. Kg4 {[%clk 0:00:02.8]} 44... Rg7 {[%clk
0:01:28.6]} 45. Nf6 {[%clk 0:00:02.6]} 45... Rc7 {[%clk 0:01:23.6]} 46. Ne4
{[%clk 0:00:03.5]} 46... Rc4 {[%clk 0:01:22.8]} 47. Kf3 {[%clk 0:00:03.9]} 47...
Kf5 {[%clk 0:01:23]} 48. g6+ {[%clk 0:00:04.4]} 48... Kxg6 {[%clk 0:01:19.5]}
49. Rxe5 {[%clk 0:00:05.3]} 49... Kf7 {[%clk 0:01:19.6]} 50. Rf5+ {[%clk
0:00:04.5]} 50... Ke8 {[%clk 0:01:19.1]} 51. Re5+ {[%clk 0:00:03]} 51... Kd7
{[%clk 0:01:19.1]} 52. Ke3 {[%clk 0:00:01.2]} 52... Ra4 {[%clk 0:01:13.9]} 53.
Kd3 {[%clk 0:00:01.6]} 53... Ra5 {[%clk 0:01:09.8]} 54. Rf5 {[%clk 0:00:02.5]}
54... Be7 {[%clk 0:01:07.3]} 55. Kc4 {[%clk 0:00:03.4]} 55... Ra4+ {[%clk
0:01:07]} 56. Kd5 {[%clk 0:00:04.3]} 56... Rb4 {[%clk 0:01:05.5]} 57. Nc3 {[%clk
0:00:02.6]} 57... Rh4 {[%clk 0:01:01.9]} 58. Ne4 {[%clk 0:00:01.9]} 58... Rh1
{[%clk 0:01:00.8]} 59. Nf6+ {[%clk 0:00:02.4]} 59... Kc7 {[%clk 0:01:00.4]} 60.
Ne4 {[%clk 0:00:02.6]} 60... Rd1+ {[%clk 0:00:58.6]} 61. Kc4 {[%clk 0:00:02.8]}
61... Rb1 {[%clk 0:00:57.5]} 62. Nc3 {[%clk 0:00:03.2]} 62... Rb4+ {[%clk
0:00:54.4]} 63. Kd3 {[%clk 0:00:03.2]} 63... Kd6 {[%clk 0:00:50.7]} 64. Rd5+
{[%clk 0:00:02.6]} 64... Ke6 {[%clk 0:00:50.7]} 65. Rd4 {[%clk 0:00:03.2]} 65...
Rb3 {[%clk 0:00:48.5]} 66. Kc4 {[%clk 0:00:02.8]} 66... Rb2 {[%clk 0:00:46.1]}
67. Re4+ {[%clk 0:00:03.2]} 67... Kd7 {[%clk 0:00:45.4]} 68. Rd4+ {[%clk
0:00:03.6]} 68... Kc8 {[%clk 0:00:45.1]} 69. Re4 {[%clk 0:00:03.5]} 69... Bc5
{[%clk 0:00:42.1]} 70. Nd5 {[%clk 0:00:03.7]} 70... Rc2+ {[%clk 0:00:41.6]} 71.
Kb3 {[%clk 0:00:03.6]} 71... Rh2 {[%clk 0:00:41.2]} 72. Rg4 {[%clk 0:00:03.3]}
72... Kd7 {[%clk 0:00:41]} 73. Rg7+ {[%clk 0:00:02.8]} 73... Kd6 {[%clk
0:00:41.3]} 74. Nc3 {[%clk 0:00:03.2]} 74... Rh3 {[%clk 0:00:41]} 75. Rg6+
{[%clk 0:00:03.1]} 75... Kd7 {[%clk 0:00:41.6]} 76. Kc4 {[%clk 0:00:03.3]} 76...
Rh4+ {[%clk 0:00:40.9]} 77. Kd3 {[%clk 0:00:02]} 77... Rd4+ {[%clk 0:00:40.7]}
78. Kc2 {[%clk 0:00:02.5]} 78... Kc7 {[%clk 0:00:40.4]} 79. Rg7+ {[%clk
0:00:02.7]} 79... Kd6 {[%clk 0:00:40.7]} 80. Rg6+ {[%clk 0:00:03.2]} 80... Kc7
{[%clk 0:00:41.2]} 81. Rg7+ {[%clk 0:00:03.3]} 81... Kd8 {[%clk 0:00:41.6]} 82.
Rg6 {[%clk 0:00:02.5]} 82... Rh4 {[%clk 0:00:40.1]} 83. Rg3 {[%clk 0:00:02.4]}
83... Kd7 {[%clk 0:00:39.6]} 84. Rd3+ {[%clk 0:00:03.3]} 84... Ke6 {[%clk
0:00:39.3]} 85. Nd5 {[%clk 0:00:02.7]} 85... Rc4+ {[%clk 0:00:37.5]} 86. Nc3
{[%clk 0:00:03.2]} 86... Ke5 {[%clk 0:00:36.1]} 87. Kb3 {[%clk 0:00:03.6]} 87...
Rh4 {[%clk 0:00:35.8]} 88. Rd5+ {[%clk 0:00:03]} 88... Ke6 {[%clk 0:00:35.9]}
89. Rg5 {[%clk 0:00:03]} 89... Bd4 {[%clk 0:00:35.6]} 90. Kc2 {[%clk 0:00:01.8]}
90... Bf6 {[%clk 0:00:33.7]} 91. Rg3 {[%clk 0:00:01.5]} 91... Kd6 {[%clk
0:00:32.9]} 92. Kb3 {[%clk 0:00:02.4]} 92... Kc5 {[%clk 0:00:32.6]} 93. Rd3
{[%clk 0:00:02]} 93... Rb4+ {[%clk 0:00:32.1]} 94. Kc2 {[%clk 0:00:02.3]} 94...
Rc4 {[%clk 0:00:31.2]} 95. Rd5+ {[%clk 0:00:02.2]} 95... Kb4 {[%clk 0:00:30.9]}
96. Rd3 {[%clk 0:00:01.6]} 96... Rxc3+ {[%clk 0:00:31]} 97. Rxc3 {[%clk
0:00:01.7]} 97... Bxc3 {[%clk 0:00:31.9]} 0-1

[Event "Late-Titled-Tuesday-Blitz-March-26-2024"]
[Site "Chess.com"]
[Date "2024.03.26"]
[Round "1"]
[White "Quattroporte300"]
[Black "Iball95"]
[Result "1/2-1/2"]
[WhiteElo "2477"]
[BlackElo "2880"]
[TimeControl "180+1"]
[EndTime "14:10:22 PDT"]
[Termination "Game drawn - insufficient material"]

1. e4 {[%clk 0:03:00.9]} 1... c5 {[%clk 0:02:59.1]} 2. Nc3 {[%clk 0:02:59.9]}
2... e6 {[%clk 0:02:59.1]} 3. g3 {[%clk 0:02:59]} 3... d5 {[%clk 0:02:59]} 4.
exd5 {[%clk 0:02:58.8]} 4... exd5 {[%clk 0:02:59.9]} 5. Bg2 {[%clk 0:02:59.5]}
5... Nf6 {[%clk 0:02:59.7]} 6. Nf3 {[%clk 0:02:57.9]} 6... d4 {[%clk 0:02:58.6]}
7. Qe2+ {[%clk 0:02:53.6]} 7... Be7 {[%clk 0:02:56.6]} 8. Ne4 {[%clk 0:02:53.9]}
8... O-O {[%clk 0:02:56.4]} 9. O-O {[%clk 0:02:54]} 9... Nxe4 {[%clk 0:02:54.7]}
10. Qxe4 {[%clk 0:02:53.7]} 10... Nc6 {[%clk 0:02:54.3]} 11. d3 {[%clk
0:02:46.6]} 11... Re8 {[%clk 0:02:50.1]} 12. Qe2 {[%clk 0:02:45]} 12... Bd6
{[%clk 0:02:47.1]} 13. Qd1 {[%clk 0:02:44.3]} 13... Bg4 {[%clk 0:02:43]} 14. h3
{[%clk 0:02:43.9]} 14... Bh5 {[%clk 0:02:43]} 15. Bd2 {[%clk 0:02:36.3]} 15...
Qc7 {[%clk 0:02:38.5]} 16. g4 {[%clk 0:02:28.7]} 16... Bg6 {[%clk 0:02:38.5]}
17. Nh4 {[%clk 0:02:28.8]} 17... Bh2+ {[%clk 0:02:30.9]} 18. Kh1 {[%clk
0:02:28.3]} 18... Bf4 {[%clk 0:02:31.6]} 19. Nxg6 {[%clk 0:02:22.9]} 19... hxg6
{[%clk 0:02:22.8]} 20. Be4 {[%clk 0:02:02.1]} 20... Re6 {[%clk 0:02:14.2]} 21.
Bxf4 {[%clk 0:01:56.5]} 21... Qxf4 {[%clk 0:02:15.1]} 22. Qf3 {[%clk 0:01:56.9]}
22... Qd2 {[%clk 0:01:50.1]} 23. Qd1 {[%clk 0:01:53]} 23... Qf4 {[%clk
0:01:46.5]} 24. Qf3 {[%clk 0:01:52.3]} 24... Qd2 {[%clk 0:01:46.8]} 25. Qd1
{[%clk 0:01:51.9]} 25... Qh6 {[%clk 0:01:45.5]} 26. Kg2 {[%clk 0:01:50.9]} 26...
Rae8 {[%clk 0:01:44.6]} 27. f4 {[%clk 0:01:42.7]} 27... Qh4 {[%clk 0:01:42.4]}
28. Qf3 {[%clk 0:01:42.2]} 28... Nb4 {[%clk 0:01:36.8]} 29. Rf2 {[%clk
0:01:37.8]} 29... R8e7 {[%clk 0:01:13.2]} 30. a3 {[%clk 0:01:37.7]} 30... Nc6
{[%clk 0:01:13.6]} 31. Raf1 {[%clk 0:01:28.6]} 31... Kh8 {[%clk 0:01:07.5]} 32.
Qg3 {[%clk 0:01:26.6]} 32... Qxg3+ {[%clk 0:01:04.1]} 33. Kxg3 {[%clk
0:01:27.5]} 33... a6 {[%clk 0:00:58.7]} 34. h4 {[%clk 0:01:25.8]} 34... Kg8
{[%clk 0:00:58.4]} 35. Rh1 {[%clk 0:01:18]} 35... Na7 {[%clk 0:00:39.6]} 36. h5
{[%clk 0:01:07.9]} 36... gxh5 {[%clk 0:00:40.5]} 37. Rxh5 {[%clk 0:01:08.4]}
37... g6 {[%clk 0:00:33.2]} 38. Rxc5 {[%clk 0:01:07.4]} 38... Nb5 {[%clk
0:00:32.5]} 39. Rd5 {[%clk 0:00:59.9]} 39... Kg7 {[%clk 0:00:29.6]} 40. a4
{[%clk 0:00:58.5]} 40... Nd6 {[%clk 0:00:30.1]} 41. Rxd4 {[%clk 0:00:59.1]}
41... Nxe4+ {[%clk 0:00:30.2]} 42. dxe4 {[%clk 0:00:53.3]} 42... Rxe4 {[%clk
0:00:31.1]} 43. Rxe4 {[%clk 0:00:52]} 43... Rxe4 {[%clk 0:00:32]} 44. b3 {[%clk
0:00:52.6]} 44... Kf6 {[%clk 0:00:31.9]} 45. Rd2 {[%clk 0:00:51.7]} 45... Ke6
{[%clk 0:00:26.3]} 46. Kf3 {[%clk 0:00:49.8]} 46... Rb4 {[%clk 0:00:26.7]} 47.
Rd8 {[%clk 0:00:48.8]} 47... f5 {[%clk 0:00:25.6]} 48. g5 {[%clk 0:00:47]} 48...
Rb6 {[%clk 0:00:23.5]} 49. Rf8 {[%clk 0:00:40.4]} 49... Ke7 {[%clk 0:00:22.8]}
50. Rc8 {[%clk 0:00:37.1]} 50... Kd7 {[%clk 0:00:21.9]} 51. Rg8 {[%clk
0:00:33.1]} 51... Rc6 {[%clk 0:00:22.3]} 52. c4 {[%clk 0:00:27.2]} 52... Rb6
{[%clk 0:00:22.4]} 53. Rg7+ {[%clk 0:00:25.6]} 53... Ke8 {[%clk 0:00:22.6]} 54.
Ke3 {[%clk 0:00:25.5]} 54... Kf8 {[%clk 0:00:20.5]} 55. Rc7 {[%clk 0:00:22.1]}
55... Rxb3+ {[%clk 0:00:20.8]} 56. Kd4 {[%clk 0:00:22.8]} 56... Rb4 {[%clk
0:00:19.2]} 57. a5 {[%clk 0:00:21.9]} 57... b5 {[%clk 0:00:15.1]} 58. Rc6 {[%clk
0:00:17.2]} 58... Ke7 {[%clk 0:00:13.2]} 59. Kd5 {[%clk 0:00:14.4]} 59... Rxc4
{[%clk 0:00:11.5]} 60. Rxa6 {[%clk 0:00:13.2]} 60... Rxf4 {[%clk 0:00:10.7]} 61.
Rxg6 {[%clk 0:00:13.9]} 61... Ra4 {[%clk 0:00:11.2]} 62. a6 {[%clk 0:00:13.3]}
62... f4 {[%clk 0:00:11.7]} 63. Ke5 {[%clk 0:00:13.1]} 63... f3 {[%clk
0:00:11.5]} 64. Rf6 {[%clk 0:00:08.3]} 64... f2 {[%clk 0:00:09.2]} 65. Rxf2
{[%clk 0:00:06.6]} 65... Rxa6 {[%clk 0:00:09.8]} 66. Rh2 {[%clk 0:00:06.4]}
66... b4 {[%clk 0:00:09.2]} 67. Rh7+ {[%clk 0:00:05.7]} 67... Kf8 {[%clk
0:00:09.5]} 68. Rb7 {[%clk 0:00:06.4]} 68... Ra5+ {[%clk 0:00:09.4]} 69. Kf6
{[%clk 0:00:06.8]} 69... Ra6+ {[%clk 0:00:10.1]} 70. Kf5 {[%clk 0:00:07.2]}
70... Ra5+ {[%clk 0:00:10.2]} 71. Kg6 {[%clk 0:00:07.7]} 71... Ra8 {[%clk
0:00:05]} 72. Rxb4 {[%clk 0:00:06.1]} 72... Kg8 {[%clk 0:00:05]} 73. Rb6 {[%clk
0:00:06.2]} 73... Rd8 {[%clk 0:00:04.9]} 74. Kh6 {[%clk 0:00:06.1]} 74... Ra8
{[%clk 0:00:05.2]} 75. g6 {[%clk 0:00:05.7]} 75... Rc8 {[%clk 0:00:04.7]} 76.
Rd6 {[%clk 0:00:05.9]} 76... Ra8 {[%clk 0:00:05.3]} 77. Rc6 {[%clk 0:00:06.6]}
77... Rb8 {[%clk 0:00:05.5]} 78. Rd6 {[%clk 0:00:06.6]} 78... Ra8 {[%clk
0:00:06.1]} 79. Re6 {[%clk 0:00:06.9]} 79... Rb8 {[%clk 0:00:06.7]} 80. Kg5
{[%clk 0:00:07.4]} 80... Rb5+ {[%clk 0:00:06.8]} 81. Kf6 {[%clk 0:00:07.8]}
81... Rb8 {[%clk 0:00:07.7]} 82. Rd6 {[%clk 0:00:08]} 82... Rf8+ {[%clk
0:00:08.2]} 83. Ke7 {[%clk 0:00:07.6]} 83... Ra8 {[%clk 0:00:09.1]} 84. Rf6
{[%clk 0:00:07.5]} 84... Ra7+ {[%clk 0:00:09.2]} 85. Ke6 {[%clk 0:00:08]} 85...
Ra6+ {[%clk 0:00:08]} 86. Kf5 {[%clk 0:00:08.6]} 86... Ra5+ {[%clk 0:00:08.6]}
87. Kg4 {[%clk 0:00:09.1]} 87... Kg7 {[%clk 0:00:09]} 88. Rf7+ {[%clk
0:00:08.7]} 88... Kxg6 {[%clk 0:00:09.4]} 89. Rf4 {[%clk 0:00:09.4]} 89... Rg5+
{[%clk 0:00:10.1]} 90. Kf3 {[%clk 0:00:09.2]} 90... Rb5 {[%clk 0:00:11]} 91.
Rg4+ {[%clk 0:00:09.6]} 91... Kf5 {[%clk 0:00:11.6]} 92. Rf4+ {[%clk 0:00:10.2]}
92... Kg5 {[%clk 0:00:12.4]} 93. Rg4+ {[%clk 0:00:10.5]} 93... Kf6 {[%clk
0:00:13]} 94. Rf4+ {[%clk 0:00:11]} 94... Ke6 {[%clk 0:00:13.6]} 95. Re4+ {[%clk
0:00:11.6]} 95... Kd5 {[%clk 0:00:14]} 96. Rh4 {[%clk 0:00:11.7]} 96... Rb3+
{[%clk 0:00:14.4]} 97. Kg4 {[%clk 0:00:12.2]} 97... Ke4 {[%clk 0:00:13.6]} 98.
Kg5+ {[%clk 0:00:12.4]} 98... Ke5 {[%clk 0:00:14.2]} 99. Rh1 {[%clk 0:00:12.4]}
99... Rg3+ {[%clk 0:00:14.6]} 100. Kh4 {[%clk 0:00:12.9]} 100... Rg8 {[%clk
0:00:15.1]} 101. Re1+ {[%clk 0:00:13.3]} 101... Kd4 {[%clk 0:00:15.6]} 102. Rd1+
{[%clk 0:00:13.6]} 102... Ke4 {[%clk 0:00:16.2]} 103. Re1+ {[%clk 0:00:14.1]}
103... Kf4 {[%clk 0:00:16.9]} 104. Rf1+ {[%clk 0:00:14.8]} 104... Ke3 {[%clk
0:00:17.5]} 105. Re1+ {[%clk 0:00:15]} 105... Kf2 {[%clk 0:00:18.1]} 106. Re7
{[%clk 0:00:15.6]} 106... Rh8+ {[%clk 0:00:18.1]} 107. Kg5 {[%clk 0:00:15.5]}
107... Rg8+ {[%clk 0:00:18.8]} 108. Kf4 {[%clk 0:00:15.9]} 108... Rf8+ {[%clk
0:00:19.4]} 109. Ke4 {[%clk 0:00:16.4]} 109... Rf3 {[%clk 0:00:19.5]} 110. Re5
{[%clk 0:00:16.1]} 110... Re3+ {[%clk 0:00:19.8]} 111. Kd5 {[%clk 0:00:16]}
111... Rxe5+ {[%clk 0:00:20.7]} 112. Kxe5 {[%clk 0:00:16.4]} 1/2-1/2

[Event "Late-Titled-Tuesday-Blitz-March-26-2024"]
[Site "Chess.com"]
[Date "2024.03.26"]
[Round "2"]
[White "Zkid"]
[Black "misterlamine"]
[Result "1-0"]
[WhiteElo "2904"]
[BlackElo "2489"]
[TimeControl "180+1"]
[EndTime "14:13:23 PDT"]
[Termination "Zkid won by resignation"]

1. e4 {[%clk 0:03:00.9]} 1... c5 {[%clk 0:02:56.8]} 2. Nf3 {[%clk 0:03:00.7]}
2... d6 {[%clk 0:02:56.7]} 3. d4 {[%clk 0:03:00.6]} 3... cxd4 {[%clk 0:02:57.6]}
4. Nxd4 {[%clk 0:03:01.2]} 4... Nf6 {[%clk 0:02:58]} 5. Nc3 {[%clk 0:03:01.8]}
5... a6 {[%clk 0:02:57.9]} 6. h3 {[%clk 0:03:02.3]} 6... g6 {[%clk 0:02:52.2]}
7. g4 {[%clk 0:02:59.1]} 7... Bg7 {[%clk 0:02:51.2]} 8. g5 {[%clk 0:02:59.2]}
8... Nfd7 {[%clk 0:02:51.5]} 9. Be3 {[%clk 0:02:58.5]} 9... Nc6 {[%clk
0:02:50.8]} 10. Qd2 {[%clk 0:02:56.7]} 10... O-O {[%clk 0:02:32.6]} 11. O-O-O
{[%clk 0:02:54.3]} 11... Nde5 {[%clk 0:02:31.8]} 12. Be2 {[%clk 0:02:41.8]}
12... Nxd4 {[%clk 0:02:29.1]} 13. Bxd4 {[%clk 0:02:42.7]} 13... Be6 {[%clk
0:02:29.1]} 14. f4 {[%clk 0:02:42.3]} 14... Nc4 {[%clk 0:02:29.3]} 15. Bxc4
{[%clk 0:02:42.4]} 15... Bxc4 {[%clk 0:02:29.5]} 16. Bxg7 {[%clk 0:02:42.7]}
16... Kxg7 {[%clk 0:02:28]} 17. Qd4+ {[%clk 0:02:42.6]} 1-0

[Event "Late-Titled-Tuesday-Blitz-March-26-2024"]
[Site "Chess.com"]
[Date "2024.03.26"]
[Round "2"]
[White "Casablanca"]
[Black "artooon"]
[Result "1/2-1/2"]
[WhiteElo "2658"]
[BlackElo "3027"]
[TimeControl "180+1"]
[EndTime "14:13:42 PDT"]
[Termination "Game drawn by repetition"]

1. d4 {[%clk 0:03:00.9]} 1... Nf6 {[%clk 0:02:57.8]} 2. Bg5 {[%clk 0:03:00.8]}
2... e6 {[%clk 0:02:58.7]} 3. Nd2 {[%clk 0:03:01]} 3... h6 {[%clk 0:02:58.8]} 4.
Bh4 {[%clk 0:03:01.3]} 4... c5 {[%clk 0:02:58.8]} 5. e3 {[%clk 0:03:01.8]} 5...
Nc6 {[%clk 0:02:58.8]} 6. c3 {[%clk 0:03:02.3]} 6... d5 {[%clk 0:02:56.9]} 7.
Ngf3 {[%clk 0:03:02.5]} 7... Be7 {[%clk 0:02:56.4]} 8. Bd3 {[%clk 0:03:02.5]}
8... O-O {[%clk 0:02:56.2]} 9. O-O {[%clk 0:03:03]} 9... b6 {[%clk 0:02:48.8]}
10. Ne5 {[%clk 0:03:03.1]} 10... Nxe5 {[%clk 0:02:48.3]} 11. dxe5 {[%clk
0:03:04]} 11... Nd7 {[%clk 0:02:49.2]} 12. Bg3 {[%clk 0:03:04.4]} 12... Bb7
{[%clk 0:02:49.1]} 13. Qg4 {[%clk 0:03:04.5]} 13... Qc7 {[%clk 0:02:34.8]} 14.
Nf3 {[%clk 0:03:02.2]} 14... Qc6 {[%clk 0:02:31.7]} 15. Bf4 {[%clk 0:03:01.6]}
15... Kh8 {[%clk 0:02:09.7]} 16. Qh5 {[%clk 0:03:01.1]} 16... f5 {[%clk
0:02:06.5]} 17. Bxh6 {[%clk 0:02:50.7]} 17... gxh6 {[%clk 0:02:05.7]} 18. Qxh6+
{[%clk 0:02:51.6]} 18... Kg8 {[%clk 0:02:06.4]} 19. Qg6+ {[%clk 0:02:44.8]}
19... Kh8 {[%clk 0:02:06.9]} 20. Qh6+ {[%clk 0:02:45.7]} 20... Kg8 {[%clk
0:02:06.8]} 21. Qg6+ {[%clk 0:02:46.6]} 21... Kh8 {[%clk 0:02:07.4]} 22. Qh6+
{[%clk 0:02:47.5]} 1/2-1/2

[Event "Late-Titled-Tuesday-Blitz-March-26-2024"]
[Site "Chess.com"]
[Date "2024.03.26"]
[Round "2"]
[White "joksijoksi"]
[Black "Abhishek2"]
[Result "0-1"]
[WhiteElo "2503"]
[BlackElo "2389"]
[TimeControl "180+1"]
[EndTime "14:13:51 PDT"]
[Termination "Abhishek2 won by resignation"]

1. d4 {[%clk 0:03:00]} 1... Nf6 {[%clk 0:03:00.1]} 2. c4 {[%clk 0:02:49.6]} 2...
e6 {[%clk 0:03:00.3]} 3. Nf3 {[%clk 0:02:49.1]} 3... d5 {[%clk 0:03:00.1]} 4.
Nc3 {[%clk 0:02:48.9]} 4... Bb4 {[%clk 0:03:00.7]} 5. Bg5 {[%clk 0:02:48]} 5...
h6 {[%clk 0:03:01]} 6. Bxf6 {[%clk 0:02:48]} 6... Qxf6 {[%clk 0:03:01.9]} 7. e3
{[%clk 0:02:48.5]} 7... O-O {[%clk 0:03:01]} 8. Bd3 {[%clk 0:02:45.6]} 8... dxc4
{[%clk 0:03:00.8]} 9. Bxc4 {[%clk 0:02:46.5]} 9... c5 {[%clk 0:03:01.2]} 10. O-O
{[%clk 0:02:45.3]} 10... Bxc3 {[%clk 0:03:00.5]} 11. bxc3 {[%clk 0:02:45.2]}
11... Nc6 {[%clk 0:02:59.7]} 12. Rc1 {[%clk 0:02:42.9]} 12... Rd8 {[%clk
0:02:51.2]} 13. Bd3 {[%clk 0:02:41.9]} 13... e5 {[%clk 0:02:49.6]} 14. Bb1
{[%clk 0:02:37.6]} 14... cxd4 {[%clk 0:02:45.7]} 15. cxd4 {[%clk 0:02:30.7]}
15... Bg4 {[%clk 0:02:37.4]} 16. Re1 {[%clk 0:02:16.9]} 16... exd4 {[%clk
0:02:35.2]} 17. exd4 {[%clk 0:02:15.2]} 17... Nxd4 {[%clk 0:02:35.1]} 18. Qd3
{[%clk 0:02:13.5]} 18... Nxf3+ {[%clk 0:02:32.7]} 19. gxf3 {[%clk 0:02:12.2]}
19... Rxd3 {[%clk 0:02:32.4]} 20. fxg4 {[%clk 0:02:11.7]} 0-1

[Event "Late-Titled-Tuesday-Blitz-March-26-2024"]
[Site "Chess.com"]
[Date "2024.03.26"]
[Round "2"]
[White "MarcoRiehle"]
[Black "Juicy_Fork"]
[Result "0-1"]
[WhiteElo "2774"]
[BlackElo "2553"]
[TimeControl "180+1"]
[EndTime "14:14:51 PDT"]
[Termination "Juicy_Fork won by resignation"]

1. e4 {[%clk 0:03:00.9]} 1... e5 {[%clk 0:02:59.7]} 2. Nf3 {[%clk 0:03:00.7]}
2... Nc6 {[%clk 0:02:59.7]} 3. Bc4 {[%clk 0:03:01.2]} 3... Nf6 {[%clk 0:02:59]}
4. d4 {[%clk 0:03:00.7]} 4... exd4 {[%clk 0:02:54]} 5. O-O {[%clk 0:03:01]} 5...
Nxe4 {[%clk 0:02:54]} 6. Nc3 {[%clk 0:03:00.7]} 6... Nd6 {[%clk 0:02:45]} 7.
Re1+ {[%clk 0:02:59.9]} 7... Be7 {[%clk 0:02:45]} 8. Nd5 {[%clk 0:03:00.5]} 8...
O-O {[%clk 0:02:25.6]} 9. Nxd4 {[%clk 0:02:59.9]} 9... Bf6 {[%clk 0:02:13]} 10.
Nxc6 {[%clk 0:02:44.5]} 10... dxc6 {[%clk 0:02:08.3]} 11. Nxf6+ {[%clk
0:02:44.1]} 11... Qxf6 {[%clk 0:02:09.2]} 12. Bd3 {[%clk 0:02:44.5]} 12... Bf5
{[%clk 0:02:05.2]} 13. Bxf5 {[%clk 0:02:41]} 13... Qxf5 {[%clk 0:02:01.1]} 14.
c3 {[%clk 0:02:34.7]} 14... Rfe8 {[%clk 0:01:55.4]} 15. Be3 {[%clk 0:02:33.1]}
15... Nc4 {[%clk 0:01:48.9]} 16. Qb3 {[%clk 0:02:31.4]} 16... Nxe3 {[%clk
0:01:46.6]} 17. fxe3 {[%clk 0:02:32.3]} 17... b6 {[%clk 0:01:43.7]} 18. Rad1
{[%clk 0:02:29.6]} 18... Rad8 {[%clk 0:01:38.3]} 19. Rxd8 {[%clk 0:02:28.1]}
19... Rxd8 {[%clk 0:01:39.2]} 20. Qa3 {[%clk 0:02:26.6]} 20... Rd2 {[%clk
0:01:34.8]} 21. Rf1 {[%clk 0:02:26]} 21... Qe4 {[%clk 0:01:34.4]} 22. Rf2 {[%clk
0:02:19.8]} 22... Rd1+ {[%clk 0:01:33.5]} 0-1

[Event "Late-Titled-Tuesday-Blitz-March-26-2024"]
[Site "Chess.com"]
[Date "2024.03.26"]
[Round "2"]
[White "nj123456"]
[Black "TedBelanoff"]
[Result "1-0"]
[WhiteElo "2469"]
[BlackElo "2193"]
[TimeControl "180+1"]
[EndTime "14:14:55 PDT"]
[Termination "nj123456 won by checkmate"]

1. e4 {[%clk 0:03:00.9]} 1... g5 {[%clk 0:02:55.6]} 2. d4 {[%clk 0:03:00.3]}
2... h6 {[%clk 0:02:55.2]} 3. Nc3 {[%clk 0:03:00.1]} 3... e6 {[%clk 0:02:52.9]}
4. Be3 {[%clk 0:02:50.3]} 4... Bg7 {[%clk 0:02:53.1]} 5. h4 {[%clk 0:02:46]}
5... Qf6 {[%clk 0:02:41.3]} 6. hxg5 {[%clk 0:02:41.1]} 6... hxg5 {[%clk
0:02:41.2]} 7. Rxh8 {[%clk 0:02:42]} 7... Bxh8 {[%clk 0:02:40.9]} 8. e5 {[%clk
0:02:41.8]} 8... Qg7 {[%clk 0:02:32.5]} 9. Qh5 {[%clk 0:02:32.4]} 9... Ne7
{[%clk 0:02:27.6]} 10. Bxg5 {[%clk 0:02:29.8]} 10... Nf5 {[%clk 0:02:26.2]} 11.
Bf6 {[%clk 0:02:24.3]} 11... Qg8 {[%clk 0:02:26.2]} 12. Qxh8 {[%clk 0:02:23.6]}
12... Qxh8 {[%clk 0:02:25.7]} 13. Bxh8 {[%clk 0:02:24.5]} 13... Nxd4 {[%clk
0:02:25.1]} 14. O-O-O {[%clk 0:02:24]} 14... Nbc6 {[%clk 0:02:23.1]} 15. Bf6
{[%clk 0:02:21.5]} 15... Nf5 {[%clk 0:02:20.8]} 16. g4 {[%clk 0:02:17.1]} 16...
Nh6 {[%clk 0:02:20.4]} 17. g5 {[%clk 0:02:11.8]} 17... Ng4 {[%clk 0:02:16.7]}
18. Ne4 {[%clk 0:02:09.4]} 18... Ngxe5 {[%clk 0:02:15.9]} 19. Bb5 {[%clk
0:02:00.7]} 19... d5 {[%clk 0:02:09]} 20. Bxe5 {[%clk 0:01:55.4]} 20... Ke7
{[%clk 0:02:06.6]} 21. Bf6+ {[%clk 0:01:51.7]} 21... Kd7 {[%clk 0:02:06.4]} 22.
Ng3 {[%clk 0:01:49.8]} 22... a6 {[%clk 0:02:05.8]} 23. Bxc6+ {[%clk 0:01:50]}
23... bxc6 {[%clk 0:02:06.7]} 24. Nf3 {[%clk 0:01:49.1]} 24... a5 {[%clk
0:02:05.6]} 25. Ne5+ {[%clk 0:01:49.3]} 25... Kd6 {[%clk 0:02:05.5]} 26. Nxf7+
{[%clk 0:01:49.2]} 26... Kd7 {[%clk 0:02:05.3]} 27. Ne5+ {[%clk 0:01:48.3]}
27... Kd6 {[%clk 0:02:04.9]} 28. Ne4# {[%clk 0:01:46.4]} 1-0